fUSD/lending_fUSD_20250612
["ID","MTS","AMOUNT","RATE_DAILY","PERIOD"]
[365485810,1749700256708,-13620.88,0.00019506,2]
[365485811,1749700256718,-4404.2,0.00019506,2]
[365485812,1749700256729,-18822.28,0.00019506,2]
[365485813,1749700256739,-1047.36,0.00019506,2]
[365485814,1749700256751,-840.0,0.00019506,2]
[365485815,1749700256763,-4226.23,0.00019506,2]
[365485816,1749700256773,-490.0,0.00019506,2]
[365485817,1749700256787,-490.0,0.00019506,2]
[365485818,1749700256799,-490.0,0.00019506,2]
[365485819,1749700256810,-490.0,0.00019506,2]
[365485820,1749700256820,-600.79,0.00019506,2]
[365485821,1749700256831,-581.38183958,0.00019506,2]
[365485822,1749700256842,-2265.21,0.00019506,2]
[365485823,1749700256852,-2940.78,0.00019506,2]
[365485824,1749700256863,-975.12,0.00019506,2]
[365485825,1749700256875,-151.0,0.00019506,2]
[365485826,1749700256885,-1741.06,0.00019506,2]
[365485827,1749700256896,-490.0,0.00019506,2]
[365485828,1749700256906,-2711.78,0.00019506,2]
[365485829,1749700256916,-1283.21,0.00019506,2]
[365485830,1749700256927,-2391.02,0.00019506,2]
[365485831,1749700256937,-490.0,0.00019506,2]
[365485832,1749700256947,-1818.31,0.00019506,2]
[365485833,1749700256957,-951.29,0.00019506,2]
[365485834,1749700256967,-490.0,0.00019506,2]
[365485835,1749700256978,-1959.1,0.00019506,2]
[365485836,1749700256989,-703.6,0.00019506,2]
[365485837,1749700257000,-1813.77,0.00019506,2]
[365485838,1749700257012,-884.01,0.00019506,2]
[365485839,1749700257022,-960.57,0.00019506,2]
[365485840,1749700257033,-521.46,0.00019506,2]
[365485841,1749700257043,-161.233087,0.00019506,2]
[365485842,1749700257054,-1044.54,0.00019506,2]
[365485843,1749700257065,-1017.61,0.00019506,2]
[365485844,1749700257075,-288.6708192,0.00019506,2]
[365485845,1749700257085,-151.0,0.00019506,2]
[365485846,1749700257096,-161.233087,0.00019506,2]
[365485847,1749700257106,-730.84,0.00019506,2]
[365485848,1749700257117,-692.91,0.00019506,2]
[365485849,1749700257127,-735.11,0.00019506,2]
[365485850,1749700257138,-531.1805364,0.00019506,2]
[365485851,1749700257148,-151.0,0.00019506,2]
[365485852,1749700257159,-490.0,0.00019506,2]
[365485853,1749700257169,-3139.77,0.00019506,2]
[365485854,1749700257180,-273.85468232,0.00019506,2]
[365485855,1749700257191,-490.0,0.00019506,2]
[365485856,1749700257202,-1040.35,0.00019506,2]
[365485857,1749700257212,-2206.99,0.00019506,2]
[365485858,1749700257223,-3133.61,0.00019506,2]
[365485859,1749700257235,-944.75,0.00019506,2]
[365485860,1749700257246,-587.44,0.00019506,2]
[365485861,1749700257256,-674.52,0.00019506,2]
[365485862,1749700257267,-1290.51,0.00019506,2]
[365485863,1749700257278,-490.0,0.00019506,2]
[365485864,1749700257289,-151.0,0.00019506,2]
[365485865,1749700257299,-5195.08,0.00019506,2]
[365485866,1749700257310,-844.65,0.00019506,2]
[365485867,1749700257321,-573.63,0.00019506,2]
[365485868,1749700257331,-233.562691,0.00019506,2]
[365485869,1749700257342,-490.0,0.00019506,2]
[365485870,1749700257353,-1351.94,0.00019506,2]
[365485871,1749700257363,-490.0,0.00019506,2]
[365485872,1749700257375,-5931.31,0.00019506,2]
[365485873,1749700257386,-1433.07,0.00019506,2]
[365485874,1749700257396,-4327.08,0.00019506,2]
[365485875,1749700257407,-1258.28,0.00019506,2]
[365485876,1749700257418,-151.0,0.00019506,2]
[365485877,1749700257428,-233.562691,0.00019506,2]
[365485878,1749700257439,-6372.07011966,0.00019506,2]
[365485879,1749700257449,-150.0,0.00019518,4]
[365485880,1749700257461,-394.05866019,0.00019521,2]
[365485881,1749700257471,-150.0,0.00019531,4]
[365485882,1749700257482,-150.0,0.00019533,4]
[365485883,1749700257492,-200.96385591,0.00019533,2]
[365485884,1749700257503,-150.0,0.00019533,2]
[365485885,1749700257514,-200.0,0.00019533,2]
[365485886,1749700257524,-213.89548944,0.00019533,2]
[365485887,1749700257535,-211.92372185,0.00019533,2]
[365485888,1749700257547,-254.25548793,0.00019533,2]
[365485889,1749700257557,-179.5678995,0.00019533,2]
[365485890,1749700257568,-150.0,0.00019533,2]
[365485891,1749700257579,-150.0,0.00019533,2]
[365485892,1749700257590,-500.0,0.00019533,2]
[365485893,1749700257600,-1284.0,0.00019533,2]
[365485894,1749700257611,-500.0,0.00019533,2]
[365485895,1749700257621,-706.10665403,0.00019534,2]
[365485896,1749700257632,-1829.44566435,0.00019535,2]
[365485897,1749700257643,-150.0,0.00019537,4]
[365485898,1749700257653,-394.05866019,0.00019555,2]
[365485899,1749700257664,-236.5603718,0.00019561,2]
[365485900,1749700257675,-150.0,0.00019561,2]
[365485901,1749700257686,-150.0,0.00019561,2]
[365485902,1749700257695,-500.0,0.00019561,2]
[365485903,1749700257707,-1284.0,0.00019561,2]
[365485904,1749700257719,-500.0,0.00019561,2]
[365485905,1749700257732,-156.07760261,0.00019562,2]
[365485906,1749700257743,-156.07760261,0.00019562,2]
[365485907,1749700257755,-150.0,0.00019562,4]
[365485908,1749700257766,-192.65102864,0.00019571,2]
[365485909,1749700257777,-169.27420383,0.00019571,2]
[365485910,1749700257788,-150.0,0.00019571,4]
[365485911,1749700257799,-500.0,0.00019573,2]
[365485912,1749700257810,-500.0,0.00019573,2]
[365485913,1749700257820,-151.0,0.00019577,2]
[365485914,1749700257830,-151.0,0.00019577,2]
[365485915,1749700257840,-151.0,0.00019577,2]
[365485916,1749700257852,-151.0,0.00019577,2]
[365485917,1749700257863,-154.024,0.00019577,2]
[365485918,1749700257874,-164.242732,0.00019577,2]
[365485919,1749700257885,-164.242732,0.00019577,2]
[365485920,1749700257896,-154.024,0.00019577,2]
[365485921,1749700257907,-151.0,0.00019577,2]
[365485922,1749700257918,-151.0,0.00019577,2]
[365485923,1749700257928,-150.0,0.00019588,2]
[365485924,1749700257938,-150.0,0.00019588,2]
[365485925,1749700257949,-500.0,0.00019588,2]
[365485926,1749700257960,-1284.0,0.00019588,2]
[365485927,1749700257972,-500.0,0.00019588,2]
[365485928,1749700257986,-394.05866019,0.0001959,2]
[365485929,1749700257997,-150.0,0.00019593,4]
[365485930,1749700258008,-1000.0,0.000196,2]
[365485931,1749700258019,-1163.59,0.00019609,2]
[365485932,1749700258030,-150.0,0.0001961,4]
[365485933,1749700258041,-205.0,0.0001961,2]
[365485934,1749700258052,-150.0,0.00019616,2]
[365485935,1749700258063,-263.67358362,0.00019616,2]
[365485936,1749700258074,-500.0,0.00019616,2]
[365485937,1749700258085,-1284.0,0.00019616,2]
[365485938,1749700258096,-500.0,0.00019616,2]
[365485939,1749700258107,-394.05866019,0.00019624,2]
[365485940,1749700258122,-706.10665403,0.00019625,2]
[365485941,1749700258132,-1829.44566435,0.00019626,2]
[365485942,1749700258143,-150.0,0.00019635,4]
[365485943,1749700258153,-150.0,0.00019635,4]
[365485944,1749700258163,-150.0,0.00019635,4]
[365485945,1749700258174,-250.0,0.00019643,2]
[365485946,1749700258184,-500.0,0.00019643,2]
[365485947,1749700258194,-1284.0,0.00019643,2]
[365485948,1749700258205,-500.0,0.00019643,2]
[365485949,1749700258216,-150.0,0.00019648,4]
[365485950,1749700258228,-150.0,0.00019656,4]
[365485951,1749700258239,-394.05866019,0.00019659,2]
[365485952,1749700258250,-300.0,0.0001967,2]
[365485953,1749700258260,-1473.82,0.0001967,2]
[365485954,1749700258271,-1473.82,0.0001967,2]
[365485955,1749700258281,-500.0,0.0001967,2]
[365485956,1749700258292,-1284.0,0.0001967,2]
[365485957,1749700258303,-500.0,0.0001967,2]
[365485958,1749700258313,-255.398782,0.00019671,2]
[365485959,1749700258324,-255.398785,0.00019671,2]
[365485960,1749700258334,-151.0,0.00019671,2]
[365485961,1749700258344,-270.715022,0.00019671,2]
[365485962,1749700258354,-270.715022,0.00019671,2]
[365485963,1749700258365,-270.715022,0.00019671,2]
[365485964,1749700258376,-270.715022,0.00019671,2]
[365485965,1749700258386,-151.0,0.00019671,2]
[365485966,1749700258396,-151.0,0.00019671,2]
[365485967,1749700258406,-295.244412,0.00019671,2]
[365485968,1749700258417,-151.0,0.00019671,2]
[365485969,1749700258427,-295.91967,0.00019671,2]
[365485970,1749700258438,-1894.508418,0.00019671,2]
[365485971,1749700258448,-1894.508418,0.00019671,2]
[365485972,1749700258459,-1449.766364,0.00019671,2]
[365485973,1749700258469,-1449.766364,0.00019671,2]
[365485974,1749700258482,-204.845513,0.00019671,2]
[365485975,1749700258492,-204.845513,0.00019671,2]
[365485976,1749700258502,-204.845513,0.00019671,2]
[365485977,1749700258512,-204.845513,0.00019671,2]
[365485978,1749700258524,-437.217976,0.00019671,2]
[365485979,1749700258535,-437.217976,0.00019671,2]
[365485980,1749700258546,-437.217976,0.00019671,2]
[365485981,1749700258557,-437.217976,0.00019671,2]
[365485982,1749700258567,-292.695018,0.00019671,2]
[365485983,1749700258579,-292.695018,0.00019671,2]
[365485984,1749700258590,-292.695018,0.00019671,2]
[365485985,1749700258601,-292.695018,0.00019671,2]
[365485986,1749700258831,-156.848276,0.00019671,2]
[365485987,1749700258872,-270.296408,0.00019671,2]
[365485988,1749700258882,-270.296408,0.00019671,2]
[365485989,1749700258891,-270.296408,0.00019671,2]
[365485990,1749700258900,-270.296406,0.00019671,2]
[365485991,1749700258910,-1894.272389,0.00019671,2]
[365485992,1749700258919,-1894.272389,0.00019671,2]
[365485993,1749700258928,-1894.272389,0.00019671,2]
[365485994,1749700258938,-1894.27239001,0.00019671,2]
[365485995,1749700258947,-151.0,0.00019671,2]
[365485996,1749700258957,-301.64909,0.00019671,2]
[365485997,1749700258966,-301.64909,0.00019671,2]
[365485998,1749700258979,-301.64909,0.00019671,2]
[365485999,1749700258989,-301.649098,0.00019671,2]
[365486000,1749700258999,-285.595576,0.00019671,2]
[365486001,1749700259009,-285.595576,0.00019671,2]
[365486002,1749700259019,-285.595576,0.00019671,2]
[365486003,1749700259030,-285.595585,0.00019671,2]
[365486004,1749700259040,-151.0,0.00019671,2]
[365486005,1749700259050,-151.0,0.00019671,2]
[365486006,1749700259059,-1504.752814,0.00019671,2]
[365486007,1749700259069,-151.0,0.00019671,2]
[365486008,1749700259078,-2022.025586,0.00019671,2]
[365486009,1749700259087,-151.0,0.00019671,2]
[365486010,1749700259096,-153.082953,0.00019671,2]
[365486011,1749700259106,-191.01084038,0.00019671,2]
[365486012,1749700259116,-878.162948,0.00019671,2]
[365486013,1749700259125,-151.0,0.00019671,2]
[365486014,1749700259135,-151.0,0.00019671,2]
[365486015,1749700259144,-878.162948,0.00019671,2]
[365486016,1749700259153,-490.0,0.00019671,2]
[365486017,1749700259164,-151.0,0.00019671,2]
[365486018,1749700259174,-215.159214,0.00019671,2]
[365486019,1749700259184,-151.0,0.00019671,2]
[365486020,1749700259194,-215.159214,0.00019671,2]
[365486021,1749700259204,-151.0,0.00019671,2]
[365486022,1749700259213,-151.0,0.00019671,2]
[365486023,1749700259223,-154.944654,0.00019671,2]
[365486024,1749700259235,-151.0,0.00019671,2]
[365486025,1749700259244,-151.0,0.00019671,2]
[365486026,1749700259253,-151.0,0.00019671,2]
[365486027,1749700259263,-164.242732,0.00019671,2]
[365486028,1749700259272,-154.024,0.00019671,2]
[365486029,1749700259283,-490.0,0.00019671,2]
[365486030,1749700259293,-164.242732,0.00019671,2]
[365486031,1749700259303,-154.024,0.00019671,2]
[365486032,1749700259312,-151.0,0.00019671,2]
[365486033,1749700259321,-347.07685587,0.00019671,2]
[365486034,1749700259331,-151.0,0.00019671,2]
[365486035,1749700259341,-490.0,0.00019671,2]
[365486036,1749700259351,-151.0,0.00019671,2]
[365486037,1749700259361,-497.43,0.00019671,2]
[365486038,1749700259371,-151.0,0.00019671,2]
[365486039,1749700259380,-151.0,0.00019671,2]
[365486040,1749700259389,-151.0,0.00019671,2]
[365486041,1749700259399,-922.97,0.00019671,2]
[365486042,1749700259410,-255.80016944,0.00019671,2]
[365486043,1749700259419,-490.0,0.00019671,2]
[365486044,1749700259429,-151.0,0.00019671,2]
[365486045,1749700259440,-151.0,0.00019671,2]
[365486046,1749700259450,-151.0,0.00019671,2]
[365486047,1749700259459,-151.0,0.00019671,2]
[365486048,1749700259469,-298.066412,0.00019671,2]
[365486049,1749700259479,-151.0,0.00019671,2]
[365486050,1749700259488,-490.0,0.00019671,2]
[365486051,1749700259497,-151.0,0.00019671,2]
[365486052,1749700259507,-490.0,0.00019671,2]
[365486053,1749700259517,-151.0,0.00019671,2]
[365486054,1749700259527,-151.0,0.00019671,2]
[365486055,1749700259537,-490.0,0.00019671,2]
[365486056,1749700259547,-490.0,0.00019671,2]
[365486057,1749700259557,-490.0,0.00019671,2]
[365486058,1749700259567,-151.0,0.00019671,2]
[365486059,1749700259576,-490.0,0.00019671,2]
[365486060,1749700259586,-490.0,0.00019671,2]
[365486061,1749700259596,-344.909994,0.00019671,2]
[365486062,1749700259606,-344.909994,0.00019671,2]
[365486063,1749700259616,-889.46,0.00019671,2]
[365486064,1749700259626,-850.17,0.00019671,2]
[365486065,1749700259635,-490.0,0.00019671,2]
[365486066,1749700259646,-490.0,0.00019671,2]
[365486067,1749700259656,-160.74222448,0.00019671,2]
[365486068,1749700259667,-767.13,0.00019671,2]
[365486069,1749700259676,-151.0,0.00019671,2]
[365486070,1749700259686,-490.0,0.00019671,2]
[365486071,1749700259696,-490.0,0.00019671,2]
[365486072,1749700259707,-490.0,0.00019671,2]
[365486073,1749700259717,-548.190574,0.00019671,2]
[365486074,1749700259728,-548.190574,0.00019671,2]
[365486075,1749700259738,-827.19,0.00019671,2]
[365486076,1749700259749,-622.5,0.00019671,2]
[365486077,1749700259759,-490.0,0.00019671,2]
[365486078,1749700259769,-490.0,0.00019671,2]
[365486079,1749700259779,-490.0,0.00019671,2]
[365486080,1749700259790,-490.0,0.00019671,2]
[365486081,1749700259800,-151.0,0.00019671,2]
[365486082,1749700259811,-490.0,0.00019671,2]
[365486083,1749700259821,-490.0,0.00019671,2]
[365486084,1749700259831,-151.0,0.00019671,2]
[365486085,1749700259842,-499.05,0.00019671,2]
[365486086,1749700259852,-755.75,0.00019671,2]
[365486087,1749700259862,-490.0,0.00019671,2]
[365486088,1749700259872,-614.89,0.00019671,2]
[365486089,1749700259882,-756.13,0.00019671,2]
[365486090,1749700259892,-490.0,0.00019671,2]
[365486091,1749700259902,-210.459842,0.00019671,2]
[365486092,1749700259911,-490.0,0.00019671,2]
[365486093,1749700259920,-711.65,0.00019671,2]
[365486094,1749700259930,-1027.573256,0.00019671,2]
[365486095,1749700259939,-1203.41,0.00019671,2]
[365486096,1749700259948,-1027.573256,0.00019671,2]
[365486097,1749700259958,-819.02,0.00019671,2]
[365486098,1749700259967,-899.64,0.00019671,2]
[365486099,1749700259976,-194.0012738,0.00019671,2]
[365486100,1749700259987,-238.413377,0.00019671,2]
[365486101,1749700259997,-370.14502245,0.00019671,2]
[365486102,1749700260008,-490.0,0.00019671,2]
[365486103,1749700260018,-490.0,0.00019671,2]
[365486104,1749700260027,-490.0,0.00019671,2]
[365486105,1749700260037,-947.31,0.00019671,2]
[365486106,1749700260047,-490.0,0.00019671,2]
[365486107,1749700260056,-1496.96,0.00019671,2]
[365486108,1749700260066,-151.0,0.00019671,2]
[365486109,1749700260075,-490.0,0.00019671,2]
[365486110,1749700260086,-1249.79,0.00019671,2]
[365486111,1749700260095,-151.0,0.00019671,2]
[365486112,1749700260104,-1076.31,0.00019671,2]
[365486113,1749700260113,-490.0,0.00019671,2]
[365486114,1749700260123,-151.0,0.00019671,2]
[365486115,1749700260132,-898.04,0.00019671,2]
[365486116,1749700260141,-647.26,0.00019671,2]
[365486117,1749700260151,-490.0,0.00019671,2]
[365486118,1749700260161,-151.0,0.00019671,2]
[365486119,1749700260171,-490.0,0.00019671,2]
[365486120,1749700260181,-151.0,0.00019671,2]
[365486121,1749700260191,-1200.5,0.00019671,2]
[365486122,1749700260202,-2045.38,0.00019671,2]
[365486123,1749700260211,-1012.11,0.00019671,2]
[365486124,1749700260221,-490.0,0.00019671,2]
[365486125,1749700260232,-490.0,0.00019671,2]
[365486126,1749700260242,-490.0,0.00019671,2]
[365486127,1749700260251,-811.62,0.00019671,2]
[365486128,1749700260262,-490.0,0.00019671,2]
[365486129,1749700260271,-971.72,0.00019671,2]
[365486130,1749700260280,-593.18,0.00019671,2]
[365486131,1749700260290,-490.0,0.00019671,2]
[365486132,1749700260300,-7966.970245,0.00019671,2]
[365486133,1749700260309,-490.0,0.00019671,2]
[365486134,1749700260319,-1115.64,0.00019671,2]
[365486135,1749700260329,-616.77,0.00019671,2]
[365486136,1749700260338,-239.03705551,0.00019671,2]
[365486137,1749700260347,-855.11,0.00019671,2]
[365486138,1749700260357,-490.0,0.00019671,2]
[365486139,1749700260366,-822.42,0.00019671,2]
[365486140,1749700260376,-151.0,0.00019671,2]
[365486141,1749700260385,-490.0,0.00019671,2]
[365486142,1749700260395,-672.39,0.00019671,2]
[365486143,1749700260405,-490.0,0.00019671,2]
[365486144,1749700260415,-1356.55,0.00019671,2]
[365486145,1749700260425,-490.0,0.00019671,2]
[365486146,1749700260435,-490.0,0.00019671,2]
[365486147,1749700260445,-1053.56,0.00019671,2]
[365486148,1749700260455,-574.85877841,0.00019671,2]
[365486149,1749700260465,-808.47,0.00019671,2]
[365486150,1749700260475,-490.0,0.00019671,2]
[365486151,1749700260487,-490.0,0.00019671,2]
[365486152,1749700260497,-490.0,0.00019671,2]
[365486153,1749700260508,-631.22,0.00019671,2]
[365486154,1749700260518,-1030.69,0.00019671,2]
[365486155,1749700260527,-490.0,0.00019671,2]
[365486156,1749700260537,-885.99,0.00019671,2]
[365486157,1749700260547,-782.42,0.00019671,2]
[365486158,1749700260557,-874.04,0.00019671,2]
[365486159,1749700260566,-490.0,0.00019671,2]
[365486160,1749700260576,-703.96,0.00019671,2]
[365486161,1749700260586,-490.0,0.00019671,2]
[365486162,1749700260596,-794.33,0.00019671,2]
[365486163,1749700260606,-490.0,0.00019671,2]
[365486164,1749700260616,-1494.77,0.00019671,2]
[365486165,1749700260626,-1133.77,0.00019671,2]
[365486166,1749700260635,-661.495309,0.00019671,2]
[365486167,1749700260645,-661.495309,0.00019671,2]
[365486168,1749700260655,-521.26,0.00019671,2]
[365486169,1749700260666,-661.495309,0.00019671,2]
[365486170,1749700260675,-661.495309,0.00019671,2]
[365486171,1749700260685,-788.36666,0.00019671,2]
[365486172,1749700260695,-151.0,0.00019671,2]
[365486173,1749700260707,-490.0,0.00019671,2]
[365486174,1749700260726,-707.84,0.00019671,2]
[365486175,1749700260738,-1536.85,0.00019671,2]
[365486176,1749700260747,-151.0,0.00019671,2]
[365486177,1749700260756,-490.0,0.00019671,2]
[365486178,1749700260767,-1251.9,0.00019671,2]
[365486179,1749700260776,-151.0,0.00019671,2]
[365486180,1749700260787,-788.36666,0.00019671,2]
[365486181,1749700260797,-655.46,0.00019671,2]
[365486182,1749700260808,-490.0,0.00019671,2]
[365486183,1749700260818,-490.0,0.00019671,2]
[365486184,1749700260828,-1283.24,0.00019671,2]
[365486185,1749700260838,-723.12,0.00019671,2]
[365486186,1749700260848,-854.76,0.00019671,2]
[365486187,1749700260859,-212.169743,0.00019671,2]
[365486188,1749700260868,-1332.76,0.00019671,2]
[365486189,1749700260879,-212.169743,0.00019671,2]
[365486190,1749700260889,-1057.64,0.00019671,2]
[365486191,1749700260898,-941.15,0.00019671,2]
[365486192,1749700260909,-490.0,0.00019671,2]
[365486193,1749700260920,-490.0,0.00019671,2]
[365486194,1749700260930,-151.0,0.00019671,2]
[365486195,1749700260941,-490.0,0.00019671,2]
[365486196,1749700260951,-2178.17,0.00019671,2]
[365486197,1749700260962,-957.954848,0.00019671,2]
[365486198,1749700260973,-1095.5,0.00019671,2]
[365486199,1749700260986,-957.954848,0.00019671,2]
[365486200,1749700260996,-1114.51,0.00019671,2]
[365486201,1749700261006,-490.0,0.00019671,2]
[365486202,1749700261017,-490.0,0.00019671,2]
[365486203,1749700261027,-1000.0,0.00019671,2]
[365486204,1749700261037,-925.19,0.00019671,2]
[365486205,1749700261047,-296.063565,0.00019671,2]
[365486206,1749700261057,-490.0,0.00019671,2]
[365486207,1749700261068,-296.063565,0.00019671,2]
[365486208,1749700261078,-602.09,0.00019671,2]
[365486209,1749700261087,-151.0,0.00019671,2]
[365486210,1749700261097,-151.0,0.00019671,2]
[365486211,1749700261106,-151.0,0.00019671,2]
[365486212,1749700261116,-151.0,0.00019671,2]
[365486213,1749700261126,-151.0,0.00019671,2]
[365486214,1749700261135,-1088.61,0.00019671,2]
[365486215,1749700261145,-151.0,0.00019671,2]
[365486216,1749700261155,-490.0,0.00019671,2]
[365486217,1749700261164,-490.0,0.00019671,2]
[365486218,1749700261174,-490.0,0.00019671,2]
[365486219,1749700261183,-720.18,0.00019671,2]
[365486220,1749700261193,-696.79,0.00019671,2]
[365486221,1749700261202,-250.0,0.00019671,2]
[365486222,1749700261212,-891.05,0.00019671,2]
[365486223,1749700261222,-490.0,0.00019671,2]
[365486224,1749700261320,-490.0,0.00019671,2]
[365486225,1749700261330,-243.69102721,0.00019671,2]
[365486226,1749700261339,-186.246149,0.00019671,2]
[365486227,1749700261349,-1184.85,0.00019671,2]
[365486228,1749700261358,-1801.1,0.00019671,2]
[365486229,1749700261367,-151.0,0.00019671,2]
[365486230,1749700261377,-151.0,0.00019671,2]
[365486231,1749700261387,-873.070392,0.00019671,2]
[365486232,1749700261397,-577.22,0.00019671,2]
[365486233,1749700261406,-873.070392,0.00019671,2]
[365486234,1749700261415,-846.52,0.00019671,2]
[365486235,1749700261425,-209.77023,0.00019671,2]
[365486236,1749700261435,-151.0,0.00019671,2]
[365486237,1749700261444,-151.0,0.00019671,2]
[365486238,1749700261454,-643.46,0.00019671,2]
[365486239,1749700261463,-496.55,0.00019671,2]
[365486240,1749700261475,-924.98,0.00019671,2]
[365486241,1749700261486,-490.0,0.00019671,2]
[365486242,1749700261496,-151.0,0.00019671,2]
[365486243,1749700261506,-942.56,0.00019671,2]
[365486244,1749700261516,-490.0,0.00019671,2]
[365486245,1749700261526,-490.0,0.00019671,2]
[365486246,1749700261535,-1826.56,0.00019671,2]
[365486247,1749700261545,-490.0,0.00019671,2]
[365486248,1749700261554,-922.16,0.00019671,2]
[365486249,1749700261564,-966.01,0.00019671,2]
[365486250,1749700261574,-1384.55,0.00019671,2]
[365486251,1749700261584,-975.54,0.00019671,2]
[365486252,1749700261594,-5948.95,0.00019671,2]
[365486253,1749700261604,-151.0,0.00019671,2]
[365486254,1749700261614,-151.0,0.00019671,2]
[365486255,1749700261623,-627.19,0.00019671,2]
[365486256,1749700261633,-10285.41,0.00019671,2]
[365486257,1749700261642,-490.0,0.00019671,2]
[365486258,1749700261651,-490.0,0.00019671,2]
[365486259,1749700261662,-1616.81,0.00019671,2]
[365486260,1749700261671,-151.0,0.00019671,2]
[365486261,1749700261681,-2373.88,0.00019671,2]
[365486262,1749700261691,-1268.74,0.00019671,2]
[365486263,1749700261700,-941.11,0.00019671,2]
[365486264,1749700261712,-151.0,0.00019671,2]
[365486265,1749700261722,-678.35,0.00019671,2]
[365486266,1749700261732,-490.0,0.00019671,2]
[365486267,1749700261741,-151.0,0.00019671,2]
[365486268,1749700261752,-1162.6,0.00019671,2]
[365486269,1749700261762,-211.63248,0.00019671,2]
[365486270,1749700261771,-771.77,0.00019671,2]
[365486271,1749700261780,-151.0,0.00019671,2]
[365486272,1749700261789,-2029.75,0.00019671,2]
[365486273,1749700261800,-1000.0,0.00019671,2]
[365486274,1749700261809,-1057.47,0.00019671,2]
[365486275,1749700261819,-254.397119,0.00019671,2]
[365486276,1749700261828,-998.88,0.00019671,2]
[365486277,1749700261837,-1217.05,0.00019671,2]
[365486278,1749700261846,-1243.41,0.00019671,2]
[365486279,1749700261856,-987.77,0.00019671,2]
[365486280,1749700261866,-843.3,0.00019671,2]
[365486281,1749700261876,-1821.81,0.00019671,2]
[365486282,1749700261885,-490.0,0.00019671,2]
[365486283,1749700261894,-972.3,0.00019671,2]
[365486284,1749700261904,-490.0,0.00019671,2]
[365486285,1749700261914,-151.0,0.00019671,2]
[365486286,1749700261923,-844.43,0.00019671,2]
[365486287,1749700261932,-1550.17,0.00019671,2]
[365486288,1749700261941,-747.39,0.00019671,2]
[365486289,1749700261951,-233.586272,0.00019671,2]
[365486290,1749700261960,-1069.64,0.00019671,2]
[365486291,1749700261969,-490.0,0.00019671,2]
[365486292,1749700261978,-640.37,0.00019671,2]
[365486293,1749700261987,-233.586272,0.00019671,2]
[365486294,1749700261997,-656.53,0.00019671,2]
[365486295,1749700262007,-3558.2,0.00019671,2]
[365486296,1749700262016,-4030.14,0.00019671,2]
[365486297,1749700262026,-563.37,0.00019671,2]
[365486298,1749700262035,-5208.58,0.00019671,2]
[365486299,1749700262044,-569.44,0.00019671,2]
[365486300,1749700262053,-490.0,0.00019671,2]
[365486301,1749700262062,-490.0,0.00019671,2]
[365486302,1749700262071,-344.759118,0.00019671,2]
[365486303,1749700262080,-1226.37,0.00019671,2]
[365486304,1749700262089,-14317.86,0.00019671,2]
[365486305,1749700262098,-653.065893,0.00019671,2]
[365486306,1749700262108,-490.0,0.00019671,2]
[365486307,1749700262118,-490.0,0.00019671,2]
[365486308,1749700262127,-723.46,0.00019671,2]
[365486309,1749700262136,-2497.86,0.00019671,2]